bitfinex-derivatives/quotes_BTCF0:USTF0_20241128
["timestamp","ask_amount","ask_price","bid_price","bid_amount"]
[1732752981986,0.05820025,95821.0,95820.0,0.00157599]
[1732752982187,0.05820025,95821.0,95820.0,0.01537396]
[1732752982382,0.07906022,95821.0,95820.0,0.01537396]
[1732752982683,0.00607525,95821.0,95820.0,0.01537396]
[1732752982888,0.00607525,95821.0,95820.0,0.09951818]
[1732752983189,0.00607525,95821.0,95820.0,0.08973991]
[1732752983792,0.00607525,95821.0,95820.0,0.09951725]
[1732752984193,0.00507525,95821.0,95820.0,0.09951725]
[1732752984992,0.00407525,95821.0,95820.0,0.10151725]
[1732752985399,0.00307525,95821.0,95820.0,0.10151725]
[1732752985601,0.15499226,95834.0,95820.0,1.06456881]
[1732752985602,0.1239938,95834.0,95820.0,1.06456881]
[1732752985794,0.1239938,95836.0,95835.0,0.052118]
[1732752985997,0.052117,95836.0,95835.0,0.09950925]
[1732752986693,0.052117,95836.0,95835.0,0.09960574]
[1732752986694,0.1761108,95836.0,95835.0,0.09960574]
[1732752987096,0.15499226,95841.0,95840.0,0.052115]
[1732752987294,0.15499226,95845.0,95840.0,0.03603792]
[1732752987492,0.15499226,95848.0,95841.0,0.04581339]
[1732752987700,0.15499226,95848.0,95847.0,0.052111]
[1732752987701,0.052111,95848.0,95847.0,0.052111]
[1732752987902,0.20710326,95848.0,95847.0,0.08814892]
[1732752988200,0.00013012,95849.0,95848.0,0.052111]
[1732752988394,0.00013012,95849.0,95848.0,0.08814892]
[1732752988594,0.12469853,95849.0,95848.0,0.08869371]
[1732752988806,0.00013012,95849.0,95848.0,0.08869371]
[1732752989100,0.00013012,95849.0,95848.0,0.4510697]
[1732752989606,0.12613385,95864.0,95863.0,0.052102]
[1732752989802,0.20709126,95869.0,95863.0,0.44948471]
[1732752990104,0.052099,95869.0,95868.0,0.0521]
[1732752990300,0.052099,95869.0,95868.0,0.06617027]
[1732752990496,0.052099,95869.0,95868.0,0.01407027]
[1732752991094,0.052099,95869.0,95868.0,0.01564626]
[1732752991404,0.052099,95869.0,95868.0,0.00157599]
[1732752991593,0.052099,95869.0,95868.0,0.00257599]
[1732752991799,0.18548447,95869.0,95868.0,0.00257599]
[1732752991995,0.061099,95869.0,95868.0,0.00257599]
[1732752992300,0.374019,95869.0,95868.0,0.00257599]
[1732752992899,0.376019,95869.0,95853.0,0.24909566]
[1732752993107,0.052107,95855.0,95853.0,0.24909566]
[1732752993307,0.0312,95854.0,95853.0,0.24909566]
[1732752993609,0.052105,95858.0,95855.0,0.052107]
[1732752993908,0.3608,95862.0,95848.0,0.10441021]
[1732752994097,0.052103,95863.0,95859.0,0.052105]
[1732752994404,0.007,95869.0,95852.0,0.3608]
[1732752994591,0.007,95869.0,95868.0,0.0521]
[1732752995002,0.007,95869.0,95868.0,0.4129]
[1732752995600,0.005,95869.0,95868.0,0.4129]
[1732752996100,8.041e-05,95875.0,95874.0,0.052097]
[1732752997807,0.00608041,95875.0,95874.0,0.053097]
[1732752998806,0.00808041,95875.0,95874.0,0.054097]
[1732753005901,0.3608,95901.0,95874.0,0.054097]
[1732753005902,0.07391688,95895.0,95894.0,0.052086]
[1732753006820,0.07391688,95895.0,95884.0,0.3608]
[1732753006821,0.052088,95890.0,95889.0,0.052088]
[1732753008620,0.052088,95890.0,95889.0,0.053088]
[1732753009124,0.052088,95890.0,95889.0,0.001]
[1732753009827,0.054088,95890.0,95889.0,0.002]
[1732753013528,0.054088,95890.0,95863.0,0.4228]
[1732753013529,0.052102,95864.0,95863.0,0.3608]
[1732753013828,0.052093,95881.0,95858.0,0.052105]
[1732753013829,0.052103,95862.0,95858.0,0.052105]
[1732753014015,0.052103,95862.0,95847.0,0.49729445]
[1732753014218,0.052103,95862.0,95860.0,0.052104]
[1732753016525,0.053103,95862.0,95860.0,0.052104]
[1732753016828,0.053103,95862.0,95855.0,0.3608]
[1732753016829,0.053103,95862.0,95857.0,0.052106]
[1732753017416,0.054103,95862.0,95858.0,0.052105]
[1732753017631,0.057103,95862.0,95858.0,0.052105]
[1732753018828,0.057103,95862.0,95855.0,0.3608]
[1732753019420,0.057103,95862.0,95855.0,0.60989566]
[1732753019731,0.057103,95862.0,95855.0,0.61065566]
[1732753020523,0.057103,95862.0,95861.0,0.05366861]
[1732753021026,0.056103,95862.0,95861.0,0.24067133]
[1732753021218,0.055103,95862.0,95861.0,0.24067133]
[1732753021820,0.003,95862.0,95861.0,0.24067133]
[1732753022020,0.12438547,95877.0,95876.0,0.052095]
[1732753022219,0.15499226,95884.0,95883.0,0.052092]
[1732753023635,0.15499226,95884.0,95883.0,0.364972]
[1732753023925,0.15499226,95884.0,95883.0,0.36504605]
[1732753024123,0.15499226,95884.0,95883.0,0.57974605]
[1732753024124,0.007,95884.0,95883.0,0.57974605]
[1732753024635,0.18599071,95891.0,95890.0,0.052088]
[1732753024933,0.00156461,95910.0,95899.0,0.052083]
[1732753025131,0.00156461,95910.0,95899.0,0.37398174]
[1732753025327,0.07244054,95900.0,95899.0,0.01318174]
[1732753025527,0.07244054,95900.0,95883.0,0.00107405]
[1732753025733,0.3608,95898.0,95884.0,0.01312335]
[1732753025935,0.3608,95898.0,95885.0,0.01312335]
[1732753026227,0.0311,95899.0,95886.0,0.01312335]
[1732753026423,9.433e-05,95900.0,95892.0,0.7216]
[1732753026619,9.433e-05,95900.0,95899.0,0.052083]
[1732753026822,9.433e-05,95900.0,95899.0,0.06520635]
[1732753027030,9.433e-05,95900.0,95899.0,0.37804635]
[1732753027331,9.433e-05,95900.0,95899.0,0.07497499]
[1732753027522,9.433e-05,95900.0,95899.0,0.06520635]
[1732753027724,9.433e-05,95900.0,95899.0,0.052083]
[1732753027926,9.433e-05,95900.0,95899.0,0.39913493]
[1732753028124,9.433e-05,95900.0,95899.0,0.40013493]
[1732753028326,9.433e-05,95900.0,95899.0,0.40113493]
[1732753030331,9.433e-05,95900.0,95899.0,0.054083]
[1732753030831,9.433e-05,95900.0,95899.0,0.366923]
[1732753031024,0.00156461,95910.0,95909.0,0.052078]
[1732753031334,0.00156461,95910.0,95909.0,0.412878]
[1732753031530,0.0307,95927.0,95909.0,0.3608]
[1732753031833,0.052077,95911.0,95909.0,0.3608]
[1732753032238,0.052077,95911.0,95909.0,0.3618]
[1732753033428,0.052077,95911.0,95910.0,0.18649196]
[1732753034333,0.46521021,95920.0,95909.0,0.55629196]
[1732753034534,0.052077,95910.0,95909.0,0.55629196]
[1732753034935,0.052077,95910.0,95909.0,0.412878]
[1732753035131,0.052077,95910.0,95909.0,0.59936996]
[1732753035331,0.052077,95910.0,95909.0,0.412878]
[1732753035538,0.052077,95910.0,95909.0,0.413878]
[1732753035737,0.052077,95910.0,95909.0,0.3618]
[1732753037225,0.052077,95910.0,95909.0,0.3608]
[1732753037427,0.052077,95910.0,95909.0,0.3618]
[1732753037929,0.052075,95914.0,95913.0,0.052075]
[1732753038134,0.3608,95920.0,95919.0,0.052072]
[1732753038544,0.05207,95924.0,95910.0,0.10441021]
[1732753038745,0.05207,95924.0,95923.0,0.05207]
[1732753038938,7.996e-05,95925.0,95911.0,0.18649196]
[1732753038939,0.02063246,95925.0,95924.0,0.052069]
[1732753039137,7.996e-05,95925.0,95924.0,0.052069]
[1732753039544,7.996e-05,95925.0,95915.0,0.18649196]
[1732753039545,0.052074,95919.0,95918.0,0.052072]
[1732753039742,0.052074,95919.0,95918.0,0.06531327]
[1732753040045,0.05207,95924.0,95923.0,0.052069]
[1732753041342,0.05207,95924.0,95923.0,0.053069]
[1732753042941,0.05207,95924.0,95923.0,0.001]
[1732753045132,0.05207,95924.0,95923.0,0.05307]
[1732753045337,7.996e-05,95925.0,95924.0,0.052069]
[1732753046041,7.996e-05,95925.0,95924.0,0.06543041]
[1732753047044,7.996e-05,95925.0,95924.0,0.24675041]
[1732753047443,7.996e-05,95925.0,95924.0,0.24775041]
[1732753049141,7.996e-05,95925.0,95924.0,0.26941005]
[1732753049344,7.996e-05,95925.0,95924.0,0.62019181]
[1732753050445,7.996e-05,95925.0,95924.0,0.61919181]
[1732753050950,0.0932014,95943.0,95938.0,0.052062]
[1732753051149,0.0932014,95943.0,95924.0,1.29288726]
[1732753051150,0.1452564,95951.0,95950.0,0.052055]
[1732753051345,0.1452564,95951.0,95950.0,0.31478529]
[1732753051346,0.052055,95951.0,95950.0,0.31478529]
[1732753051541,0.0321,95958.0,95950.0,0.01379586]
[1732753051739,0.052052,95957.0,95955.0,0.18656784]
[1732753052050,0.052052,95957.0,95956.0,0.2003637]
[1732753052547,0.052052,95957.0,95956.0,0.01379586]
[1732753053451,0.052052,95957.0,95956.0,0.01479586]
[1732753053746,0.364692,95957.0,95956.0,0.001]
[1732753054651,0.052052,95957.0,95956.0,0.002]
[1732753055852,0.052052,95957.0,95956.0,0.0157975]
[1732753057544,0.052052,95957.0,95956.0,0.0147975]
[1732753057849,0.052052,95957.0,95956.0,0.0157975]
[1732753059954,0.052052,95957.0,95956.0,0.002]
[1732753061750,0.3608,95962.0,95961.0,0.052049]
[1732753062049,0.00013264,95964.0,95963.0,0.052048]
[1732753062258,0.00013264,95964.0,95963.0,0.06567162]
[1732753062563,0.0307,95984.0,95963.0,0.412848]
[1732753062850,0.02083857,95987.0,95982.0,0.052038]
[1732753062851,0.052038,95983.0,95982.0,0.052038]
[1732753063257,0.052038,95983.0,95982.0,0.06565375]
[1732753063556,0.052038,95983.0,95982.0,0.06572893]
[1732753064143,0.052038,95983.0,95982.0,0.05211318]
[1732753064545,7.977e-05,95993.0,95982.0,0.05211318]
[1732753064546,0.412835,95988.0,95986.0,0.052036]
[1732753065553,0.412835,95988.0,95987.0,0.052035]
[1732753065554,0.052035,95988.0,95987.0,0.052035]
[1732753065753,0.052035,95988.0,95982.0,0.00207518]
[1732753065754,0.02090202,95989.0,95988.0,0.052035]
[1732753065951,7.977e-05,95993.0,95992.0,0.052032]
[1732753067754,7.977e-05,95993.0,95992.0,0.053032]
[1732753068462,0.05211177,95993.0,95992.0,0.001]
[1732753069164,0.41291177,95993.0,95992.0,0.001]
[1732753072557,0.72543177,95993.0,95992.0,0.001]
[1732753072761,0.052037,95983.0,95982.0,7.518e-05]
[1732753072960,0.412837,95983.0,95982.0,7.518e-05]
[1732753073356,0.052037,95983.0,95982.0,7.518e-05]
[1732753074360,0.052037,95983.0,95982.0,0.00107518]
[1732753076260,0.412837,95983.0,95982.0,0.00107518]
[1732753076560,0.412837,95983.0,95964.0,0.052048]
[1732753076561,0.052046,95967.0,95964.0,0.052048]
[1732753076760,0.052047,95966.0,95964.0,0.052048]
[1732753076961,0.052047,95965.0,95964.0,0.052048]
[1732753077665,0.052047,95965.0,95964.0,0.0521389]
[1732753078056,0.052047,95965.0,95964.0,0.0541389]
[1732753078259,0.052047,95965.0,95964.0,0.2403265]
[1732753078563,0.052047,95965.0,95964.0,0.0541389]
[1732753079263,0.052047,95965.0,95964.0,0.0020909]
[1732753081070,0.052058,95946.0,95944.0,0.18754155]
[1732753081259,0.052058,95946.0,95944.0,0.05362136]
[1732753081659,0.052055,95951.0,95947.0,0.052057]
[1732753081857,0.3608,95952.0,95947.0,0.052057]
[1732753082064,0.052055,95950.0,95948.0,0.05218292]
[1732753083266,0.052055,95950.0,95948.0,0.00012692]
[1732753084560,0.052055,95950.0,95948.0,0.01512692]
[1732753085571,0.05206,95942.0,95930.0,0.18614364]
[1732753085863,0.052069,95925.0,95924.0,0.18614364]
[1732753086066,0.3608,95931.0,95923.0,0.18614364]
[1732753086256,0.052066,95930.0,95923.0,0.18614364]
[1732753086458,0.052066,95930.0,95921.0,0.052071]
[1732753086459,0.3608,95931.0,95924.0,0.00011835]
[1732753086655,0.052069,95925.0,95924.0,0.00011835]
[1732753087857,0.24277652,95925.0,95924.0,0.00011835]
[1732753088364,0.05208,95904.0,95903.0,0.0316]
[1732753088566,0.05208,95904.0,95903.0,0.21774364]
[1732753088868,0.05208,95904.0,95903.0,0.0316]
[1732753089169,0.3608,95910.0,95903.0,0.03167579]
[1732753089369,0.05208,95905.0,95903.0,0.03167579]
[1732753090264,0.05208,95905.0,95903.0,7.579e-05]
[1732753090467,0.002,95904.0,95903.0,0.07015679]
[1732753091163,0.001,95904.0,95903.0,0.06115679]
[1732753091357,0.05408,95905.0,95903.0,0.07015679]
[1732753091761,0.001,95904.0,95903.0,0.07015679]
[1732753093482,0.05207,95924.0,95923.0,0.05207]
[1732753093778,0.00010752,95925.0,95923.0,0.41287]
[1732753094074,0.00010752,95925.0,95924.0,0.0332]
[1732753095465,0.00010752,95925.0,95924.0,0.0352]
[1732753095775,0.3608,95950.0,95924.0,0.0352]
[1732753095776,0.19220424,95954.0,95924.0,0.34796]
[1732753095972,0.19220424,95954.0,95946.0,0.052057]
[1732753095973,0.3608,95951.0,95946.0,0.052057]
[1732753096173,0.00156424,95954.0,95949.0,0.3608]
[1732753096369,0.00156424,95954.0,95953.0,0.052054]
[1732753096670,0.05361724,95954.0,95953.0,0.052054]
[1732753096872,0.00156424,95954.0,95953.0,0.36478744]
[1732753097072,0.00010241,95964.0,95963.0,0.052048]
[1732753097274,0.00010241,95964.0,95963.0,0.412848]
[1732753097960,0.05204,95979.0,95978.0,0.05204]
[1732753099976,0.052042,95975.0,95973.0,0.3608]
[1732753100283,0.052046,95967.0,95965.0,0.052047]
[1732753100670,0.052048,95964.0,95963.0,0.3628]
[1732753101070,0.3608,95974.0,95963.0,0.3608]
[1732753101576,0.005,95975.0,95973.0,0.052043]
[1732753101774,0.02098084,95989.0,95971.0,0.3608]
[1732753101976,0.02098084,95989.0,95980.0,0.052039]
[1732753102173,0.052035,95988.0,95980.0,0.052039]
[1732753102484,0.02098084,95989.0,95980.0,0.052039]
[1732753102485,0.07287111,95984.0,95980.0,0.052039]
[1732753102675,0.02083411,95984.0,95980.0,0.052039]
[1732753102977,0.052041,95976.0,95973.0,0.052043]
[1732753103367,0.052038,95983.0,95972.0,0.0323]
[1732753103772,0.052038,95983.0,95980.0,0.052039]
[1732753104176,0.052034,95989.0,95980.0,0.3608]
[1732753104379,7.683e-05,95991.0,95981.0,0.052038]
[1732753104380,0.004,95982.0,95981.0,0.052038]
[1732753105478,0.004,95989.0,95988.0,0.052035]
[1732753105779,0.004,95989.0,95988.0,0.412835]
[1732753106779,0.004,95989.0,95988.0,0.725355]
[1732753107181,7.683e-05,95991.0,95990.0,0.052034]
[1732753107483,7.683e-05,95991.0,95990.0,0.242594]
[1732753108679,7.683e-05,95991.0,95990.0,0.243594]
[1732753108680,0.00807683,95991.0,95990.0,0.243594]
[1732753108983,0.00807683,95991.0,95990.0,0.053034]
[1732753108984,0.01107683,95991.0,95990.0,0.053034]
[1732753110979,0.00807683,95991.0,95990.0,0.053034]
[1732753111175,0.00907683,95991.0,95990.0,0.053034]
[1732753111380,0.00507683,95991.0,95990.0,0.052034]
[1732753111883,7.683e-05,95991.0,95990.0,0.052034]
[1732753112183,0.00507683,95991.0,95990.0,0.052034]
[1732753116290,0.00507683,95991.0,95970.0,0.00156285]
[1732753116488,0.3608,95979.0,95970.0,0.00156285]
[1732753116690,0.052044,95972.0,95970.0,0.00156285]
[1732753117090,0.052044,95972.0,95969.0,0.15645521]
[1732753117387,0.05204,95978.0,95968.0,0.3608]
[1732753117583,0.052042,95975.0,95974.0,0.052042]
[1732753118088,0.052044,95971.0,95970.0,0.011]
[1732753118385,0.052044,95971.0,95968.0,0.412845]
[1732753118386,0.052044,95971.0,95969.0,0.063045]
[1732753120090,0.052044,95971.0,95970.0,0.052044]
[1732753121393,0.052044,95971.0,95970.0,0.06948036]
[1732753121587,0.052044,95971.0,95970.0,0.004]
[1732753122595,0.07286566,95971.0,95970.0,0.008]
[1732753123586,0.07286566,95971.0,95970.0,0.02188951]
[1732753124091,0.18868,95971.0,95970.0,0.02188951]
[1732753124393,0.18868,95978.0,95970.0,0.04411003]
[1732753124589,0.052041,95976.0,95971.0,0.04587283]
[1732753124895,0.3608,95975.0,95972.0,0.04587283]
[1732753125196,0.052042,95974.0,95973.0,0.03611003]
[1732753125593,0.052042,95974.0,95973.0,0.01388951]
[1732753126894,0.364642,95974.0,95973.0,0.01411718]
[1732753127100,0.427742,95974.0,95973.0,0.01411718]
[1732753127493,0.427742,95974.0,95973.0,0.01911693]
[1732753127995,0.44825345,95974.0,95973.0,0.01911693]
[1732753128389,0.10495345,95974.0,95973.0,0.01911693]
[1732753128588,0.052042,95974.0,95973.0,0.01911693]
[1732753128791,0.052042,95974.0,95973.0,0.04183799]
[1732753128792,0.412842,95974.0,95973.0,0.04183799]
[1732753130194,0.412842,95974.0,95973.0,0.04181538]
[1732753132502,0.18872,95975.0,95974.0,0.052042]
[1732753132791,0.54952,95975.0,95974.0,0.08885738]
[1732753132992,0.54952,95975.0,95974.0,0.09861954]
[1732753132993,0.3608,95975.0,95974.0,0.09861954]
[1732753133197,0.3608,95975.0,95974.0,0.04657754]
[1732753133403,0.412842,95975.0,95974.0,0.03686592]
[1732753133601,0.725442,95975.0,95974.0,0.0161792]
[1732753133802,0.725442,95975.0,95959.0,0.31123134]
[1732753133803,0.052045,95968.0,95967.0,0.18603687]
[1732753133992,0.412845,95968.0,95967.0,0.18603687]
[1732753134189,0.052047,95965.0,95964.0,0.18603687]
[1732753134390,0.052048,95964.0,95963.0,0.18603687]
[1732753134702,0.052048,95964.0,95960.0,0.18603687]
[1732753134900,0.052048,95963.0,95962.0,0.18655259]
[1732753135602,0.052049,95961.0,95960.0,0.18655259]
[1732753135798,0.052049,95961.0,95955.0,0.24893443]
[1732753135799,0.052048,95963.0,95955.0,0.24893443]
[1732753135996,0.412851,95957.0,95956.0,0.02223228]
[1732753136499,0.412851,95957.0,95953.0,0.05214644]
[1732753136702,0.052053,95955.0,95954.0,0.20882477]
[1732753137002,0.001,95963.0,95955.0,0.009]
[1732753137200,0.001,95963.0,95962.0,0.052049]
[1732753137503,0.001,95963.0,95962.0,0.08404631]
[1732753137907,0.052041,95976.0,95975.0,0.052042]
[1732753138093,0.02082462,95984.0,95971.0,0.18651305]
[1732753138298,0.02082462,95984.0,95977.0,0.052041]
[1732753138299,0.052039,95981.0,95977.0,0.052041]
[1732753138500,0.052039,95981.0,95980.0,0.052039]
[1732753138804,0.3608,95988.0,95987.0,0.052035]
[1732753139008,0.00164004,95991.0,95990.0,0.052034]
[1732753139196,0.00164004,95991.0,95990.0,0.26058765]
[1732753139398,0.00164004,95991.0,95990.0,0.08384035]
[1732753139603,0.05367304,95991.0,95990.0,0.31047824]
[1732753140207,0.05367304,95991.0,95990.0,0.06179417]
[1732753140508,0.06067304,95991.0,95990.0,0.33344363]
[1732753140705,0.06067304,95991.0,95990.0,0.01076017]
[1732753140907,0.06067304,95991.0,95990.0,0.02308929]
[1732753141305,0.06067304,95991.0,95990.0,0.001]
[1732753141499,0.06367304,95991.0,95990.0,0.001]
[1732753142001,0.06367304,95991.0,95990.0,0.18746197]
[1732753142303,0.06367304,95991.0,95990.0,0.02309468]
[1732753142806,0.01164004,95991.0,95990.0,0.07512868]
[1732753143009,0.01164004,95991.0,95990.0,0.32374745]
[1732753143203,0.01164004,95991.0,95990.0,0.07512868]
[1732753144106,0.00764004,95991.0,95990.0,0.07412868]
[1732753144304,0.00607683,95991.0,95990.0,0.07412868]
[1732753144506,0.3608,95998.0,95997.0,0.05203]
[1732753144697,0.1,96000.0,95997.0,0.27053318]
[1732753144900,0.1,96000.0,95999.0,0.052029]
[1732753145107,0.1,96000.0,95999.0,0.07412368]
[1732753145604,0.43820001,96011.0,95999.0,0.43492368]
[1732753145605,0.00056001,96011.0,95999.0,0.43492368]
[1732753145914,0.0015627,96017.0,96016.0,0.052019]
[1732753146101,0.0015627,96017.0,96016.0,0.09786372]
[1732753146408,0.0015627,96017.0,96016.0,0.09814329]
[1732753146596,0.09338253,96032.0,96016.0,0.09814329]
[1732753146803,0.36136001,96036.0,96016.0,0.09814329]
[1732753146804,0.3608,96036.0,96027.0,0.3608]
[1732753147003,0.412809,96036.0,96034.0,0.05201]
[1732753147209,0.412809,96036.0,96035.0,0.01398679]
[1732753147705,0.3608,96036.0,96035.0,0.01398679]
[1732753148612,0.3608,96036.0,96035.0,0.001]
[1732753148613,0.3628,96036.0,96035.0,0.001]
[1732753149299,0.6752,96036.0,96035.0,0.001]
[1732753149505,0.727209,96036.0,96035.0,0.001]
[1732753149700,0.731209,96036.0,96035.0,0.002]
[1732753150310,0.3668,96036.0,96035.0,0.002]
[1732753151113,0.6792,96036.0,96035.0,0.002]
[1732753152317,0.87244,96036.0,96035.0,0.002]
[1732753152502,0.6792,96036.0,96035.0,0.002]
[1732753152908,0.87244,96036.0,96035.0,0.002]
[1732753153109,0.6792,96036.0,96035.0,0.002]
[1732753153322,0.56004,96036.0,96035.0,0.002]
[1732753153513,0.56004,96036.0,96035.0,0.054009]
[1732753154117,0.3668,96036.0,96035.0,0.054009]
[1732753154725,0.3668,96036.0,96035.0,0.414809]
[1732753154726,0.006,96036.0,96035.0,0.414809]
[1732753155209,0.00012204,96044.0,96043.0,0.052005]
[1732753156508,0.00412204,96044.0,96043.0,0.053005]
[1732753156821,0.00812204,96044.0,96043.0,0.054005]
[1732753160517,0.00412204,96044.0,96043.0,0.054005]
[1732753160910,0.00212204,96044.0,96043.0,0.053005]
[1732753163015,0.00212204,96044.0,96043.0,0.052005]
[1732753163518,0.00112204,96044.0,96043.0,0.052005]
[1732753164519,0.00212204,96044.0,96043.0,0.052005]
[1732753165819,0.00156234,96056.0,96043.0,0.06516821]
[1732753166012,0.00156234,96056.0,96051.0,0.3608]
[1732753166209,0.00156234,96056.0,96055.0,0.051998]
[1732753168018,0.00156234,96056.0,96055.0,0.0520927]
[1732753168330,0.00156234,96056.0,96055.0,0.06523261]
[1732753168331,0.00356234,96056.0,96055.0,0.06523261]
[1732753169028,0.00356234,96056.0,96055.0,0.06524079]
[1732753169325,0.00356234,96056.0,96055.0,0.06624079]
[1732753170723,0.00356234,96056.0,96055.0,0.06649118]
[1732753171424,0.05556034,96056.0,96055.0,0.01449318]
[1732753171731,0.05556034,96056.0,96055.0,0.0010947]
[1732753173522,0.05556034,96056.0,96055.0,0.01442456]
[1732753173724,0.05556034,96056.0,96055.0,0.06642256]
[1732753174819,0.66788034,96056.0,96047.0,0.18613666]
[1732753175025,0.66788034,96056.0,96044.0,0.24837858]
[1732753175026,0.052009,96036.0,96035.0,0.052009]
[1732753175218,0.05201,96034.0,96032.0,0.18613666]
[1732753175419,0.3608,96036.0,96031.0,0.18613666]
[1732753175613,0.1932,96040.0,96039.0,0.052007]
[1732753175814,0.1932,96040.0,96039.0,0.05213838]
[1732753176104,0.36122401,96048.0,96039.0,0.05213838]
[1732753176105,0.554,96048.0,96045.0,0.052004]
[1732753176340,0.052003,96047.0,96044.0,0.052004]
[1732753176565,0.052003,96047.0,96046.0,0.052003]
[1732753177920,0.052004,96044.0,96043.0,0.1858891]
[1732753178221,0.052003,96046.0,96043.0,0.1858891]
[1732753178430,0.052003,96046.0,96045.0,0.052003]
[1732753179529,0.002,96047.0,96046.0,0.052003]
[1732753179821,0.245197,96057.0,96055.0,0.051998]
[1732753180018,0.245197,96057.0,96052.0,0.24793892]
[1732753180019,0.051999,96053.0,96052.0,0.24793892]
[1732753180214,0.052002,96049.0,96047.0,0.36225695]
[1732753180414,0.052002,96049.0,96048.0,0.052002]
[1732753180627,0.051999,96054.0,96053.0,0.051999]
[1732753182125,0.00356234,96056.0,96055.0,0.051998]
[1732753183220,0.05556034,96056.0,96055.0,0.051998]
[1732753183534,0.05556034,96056.0,96053.0,0.24797579]
[1732753183535,0.051999,96054.0,96053.0,0.24797579]
[1732753183830,0.051999,96054.0,96053.0,0.26958597]
[1732753184229,0.051999,96054.0,96053.0,0.02161018]
[1732753184424,0.051999,96054.0,96053.0,0.07360918]
[1732753184622,0.051999,96054.0,96053.0,0.051999]
[1732753184820,0.052999,96054.0,96053.0,0.052999]
[1732753185734,0.055999,96054.0,96053.0,0.07464273]
[1732753186123,0.055999,96054.0,96053.0,0.32297898]
[1732753186928,0.055999,96054.0,96053.0,0.33651797]
[1732753187224,0.055999,96054.0,96053.0,0.08818172]
[1732753187432,0.055999,96054.0,96053.0,0.34627241]
[1732753187736,0.055999,96054.0,96053.0,0.33651797]
[1732753188233,0.004,96054.0,96053.0,0.33651797]
[1732753188634,0.004,96054.0,96053.0,0.34627241]
[1732753188828,0.004,96054.0,96053.0,0.33651797]
[1732753189132,0.004,96054.0,96053.0,0.06275344]
[1732753189333,0.004,96054.0,96053.0,0.3477595]
[1732753189836,0.004,96054.0,96053.0,0.09941542]
[1732753190231,0.004,96054.0,96053.0,0.08966098]
[1732753190426,0.004,96054.0,96053.0,0.09941516]
[1732753193132,0.055999,96054.0,96053.0,0.09941516]
[1732753193326,0.055999,96054.0,96053.0,0.03766198]
[1732753193521,0.055999,96054.0,96053.0,0.08966098]
[1732753193922,0.004,96054.0,96053.0,0.08966098]
[1732753195741,0.004,96054.0,96053.0,0.08966958]
[1732753195941,0.3648,96054.0,96053.0,0.08966958]
[1732753196242,0.416799,96054.0,96053.0,0.03767058]
[1732753197536,0.055999,96054.0,96053.0,0.03767058]
[1732753197741,0.004,96054.0,96053.0,0.03767058]
[1732753198050,0.004,96054.0,96053.0,0.09292102]
[1732753198737,0.004,96054.0,96053.0,0.04092202]
[1732753198738,0.416799,96054.0,96053.0,0.04092202]
[1732753198933,0.416799,96054.0,96053.0,0.00425144]
[1732753199134,0.416799,96054.0,96053.0,0.0411755]
[1732753199637,0.416799,96054.0,96053.0,0.20475543]
[1732753200141,0.416799,96054.0,96053.0,0.20150399]
[1732753200745,0.416799,96054.0,96053.0,0.01520156]
[1732753201129,0.416799,96054.0,96046.0,0.18631862]
[1732753201130,1.18475655,96054.0,96046.0,0.18631862]
[1732753201437,0.51664908,96051.0,96041.0,0.18631862]
[1732753201744,0.052006,96041.0,96040.0,0.18631862]
[1732753201936,0.235366,96041.0,96040.0,0.18631862]
[1732753202438,0.235366,96041.0,96038.0,0.18631862]
[1732753202439,0.052006,96040.0,96038.0,0.18631862]
[1732753202631,0.14550481,96040.0,96038.0,0.18631862]
[1732753203035,0.052006,96040.0,96039.0,0.18645]
[1732753203238,0.3608,96042.0,96039.0,0.18645]
[1732753203437,0.54416,96042.0,96041.0,0.052006]
[1732753204541,0.3608,96042.0,96041.0,0.052006]
[1732753205135,0.3608,96042.0,96041.0,0.053006]
[1732753205336,0.3608,96042.0,96041.0,0.07885888]
[1732753205642,0.3608,96042.0,96041.0,0.07560715]
[1732753205839,0.412805,96042.0,96041.0,0.07560715]
[1732753206937,0.412805,96042.0,96041.0,0.02360115]
[1732753207139,0.412805,96042.0,96041.0,0.001]
[1732753207553,0.50628702,96042.0,96041.0,0.001]
[1732753208053,0.725165,96042.0,96041.0,0.001]
[1732753208347,0.849848,96042.0,96041.0,0.001]
[1732753208537,0.756065,96042.0,96041.0,0.001]
[1732753210045,0.91185848,96042.0,96041.0,0.001]
[1732753210260,0.756065,96042.0,96041.0,0.001]
[1732753210434,0.91185848,96042.0,96041.0,0.001]
[1732753210634,0.786365,96042.0,96041.0,0.001]
[1732753210845,0.052013,96028.0,96024.0,0.18620693]
[1732753211157,0.3608,96026.0,96018.0,0.18620693]
[1732753211343,0.4542545,96026.0,96015.0,0.18620693]
[1732753211645,0.052019,96016.0,96015.0,0.18620693]
[1732753211844,0.235379,96016.0,96015.0,0.1862843]
[1732753212032,0.235379,96016.0,96015.0,0.00013201]
[1732753212841,0.18336,96016.0,96015.0,0.05215201]
[1732753213043,0.2035414,96016.0,96015.0,0.06190985]
[1732753213233,0.2035414,96016.0,96015.0,0.06619353]
[1732753213437,0.18336,96016.0,96015.0,0.06944617]
[1732753213638,0.3628,96026.0,96015.0,0.04995388]
[1732753213835,0.3628,96026.0,96025.0,0.052015]
[1732753214042,0.3628,96026.0,96025.0,0.09207237]
[1732753214241,0.3628,96026.0,96025.0,0.10182903]
[1732753214440,0.3628,96026.0,96025.0,0.06605652]
[1732753214654,0.3628,96026.0,96025.0,0.08879506]
[1732753214842,0.3608,96026.0,96025.0,0.06605652]
[1732753215749,0.3638,96026.0,96025.0,0.06605652]
[1732753215945,0.3688,96026.0,96025.0,0.06605652]
[1732753216447,0.011,96026.0,96025.0,0.09950472]
[1732753217241,0.003,96026.0,96025.0,0.09950472]
[1732753217445,0.01,96026.0,96025.0,0.09950472]
[1732753217847,0.062014,96026.0,96025.0,0.04748972]
[1732753218147,0.063014,96026.0,96025.0,0.01504152]
[1732753218346,0.423814,96026.0,96025.0,0.01504152]
[1732753218650,0.607214,96026.0,96025.0,0.01504152]
[1732753219151,0.599214,96026.0,96025.0,0.01404152]